Workbook

Sheet Instructions
C3: Attachment I COST PROPOSAL
C5: Offeror Name:
C7: Instructions
D8: The following instructions must be followed in completing the worksheet:
E9: 1) | F9: This Cost Proposal form (Attachment I) has multiple sections (tabs) at the bottom of this spreadsheet. To be considered responsive, Offeror must minimally complete one of the PRIMARY tabs according to the requirements outlined herein. The Primary Tabs are to be used for scoring and awarding purposes.
E10: 2) | F10: The Cost Proposal Form has 5 tabs at the bottom (including this Instructions tab). An Offeror MUST complete fully either "Cat 1 - Level 2 EV Chargers" or "Cat 2 - Level 3 DC Fast Charger" to be considered responsive. The "+ Optional - Category 1" and "+ Optional - Category 2" are for Offerors that may be able to sell/provide additional manufacturers. The "+" indicants optional completion. The optional tabs are not used for scoring and awarding purposes but are to be completed by Offerors that wish to make available additional Manufacturers should a contract be awarded. All additional Manufacturers must be added in these sheets. No additional manufacturers will be allowed to be added throughout the adminstration of the contract. You may scroll down to add in the additional manufacturers. If more are needed, please copy and paste the cost information requested.
E11: 3) | F11: For the Primary Tabs - Offeror must enter information for all boxes highlighted in BLUE for whichever category they are applying.
E12: 4) | F12: Within the Market Basket evaluations, Offeror must enter the Manufacturer's Name, Model Number, Unit Price & Total Price for each item the Offeror plans to bid.
E13: 4a) | F13: Therein, the YELLOW boxes on the right will auto populate after the initial price and discount percentage boxes are entered. The Lowest Total Cost for each category will auto populate as you enter a price for each individual item. The Lowest Total Cost will be determined by the box in GREEN in column G. This Lowest Total Cost will be how cost point allocation is determined for each category.
E14: 5) | F14: An Offeror must be able to complete to provide a cost for each line item requested in an Award Category for which they are seeking an award in.
E15: 6) | F15: Offeror must enter the % Percentage Discount off for additional items not referenced.
E16: 7) | F16: In addition to completing this form, Offeror shall submit separately a list of ALL products and service available for purchase indicating the manufacturer, model/part #, MSRP, offered price, that will be made available through the resulting awards.

Sheet Cat 1 - Level 2 EV Chargers
A1: Category 1 - Level 2 EV Chargers - Primary Tab
A2: Market Basket and Discount % Off Evaluation
B4: Are you seeking an award in this Category?
A6: Equipment
A7: Supplier may offer different discount percentages for each line item. Discount percentage for the product line item must be applied for that item for the duration of the contract, including updated or new versions of item.
A8: QTY. | B8: DESCRIPTION | C8: MANUFACTURER | D8: MODEL/PART # | E8: UNIT PRICE | F8: DISCOUNT % OFF | G8: FINAL STATE PRICE
A9: 1 | B9: Single Port Pedestal Mount | C9: OpConnect Networked ClipperCreek | D9: HCS-40R-N-C-P | E9: $2,795.00 | F9: 15.0% | G9: =E9-(E9*F9) -> $2,375.75
A10: 1 | B10: Dual Port Pedestal Mount | C10: OpConnect Networked ClipperCreek | D10: HCS-40R-N-HS-DP | E10: $4,710.00 | F10: 15.0% | G10: =E10-(E10*F10) -> $4,003.50
A11: 1 | B11: Single Port Wall Mount (can be ceiling mount, single telephone or, street lamp pole mounting) | C11: OpConnect Networked ClipperCreek | D11: HCS-40R-N-C | E11: $1,857.00 | F11: 15.0% | G11: =E11-(E11*F11) -> $1,578.45
A12: 1 | B12: Dual Port Wall Mount (can be ceiling mount, single telephone or, street lamp pole mounting) | C12: OpConnect Networked ClipperCreek | D12: HCS-40R-HS | E12: $3,551.00 | F12: 15.0% | G12: =E12-(E12*F12) -> $3,018.35
A13: Accessories & Additional Items
A14: Supplier may offer different discount percentages for each line item. Discount percentage for the product line item must be applied for that item for the duration of the contract, including updated or new versions of item.
A15: QTY. | B15: DESCRIPTION | C15: MANUFACTURER | D15: MODEL/PART # | E15: UNIT PRICE | F15: DISCOUNT % OFF | G15: FINAL STATE PRICE
A16: 1 | B16: Cord Management Kit (most commonly sold cord management kit of suppliers which is sold to end users) | C16: OpConnect | D16: OC-0300-00-027 | E16: $1,132.00 | F16: 15% | G16: =E16-(E16*F16) -> $962.20
A17: 1 | B17: Replacement Cord (most commonly sold replacement cord of suppliers which is sold to end users) | G17: $0.00
A18: 1 | B18: 125 Amp 1-Phase 120/208 Volt Sub-Panel (most common sub panel sold by supplier) | G18: $0.00
A19: 1 | B19: Cellular Repeater (most common repeater used with station) | G19: $0.00
A20: 1 | B20: Wheel Stops: (Includes material and installation for 1 wheel stop) | G20: $0.00
A21: 1 | B21: Bollards: (Includes material and installation for 1 bollard) | G21: $0.00
A22: 1 | B22: Replacement RFID card | G22: $0.00
A23: Services
A24: Supplier may offer different discount percentages for each line item. Discount percentage for the product line item must be applied for that item for the duration of the contract, including updated or new versions of item.
A25: QTY. | B25: DESCRIPTION | C25: MANUFACTURER | D25: MODEL/PART # | E25: UNIT PRICE | F25: DISCOUNT % OFF | G25: EXTENDED PRICE
A26: 1 | B26: One Year Standard Networking (bundled with software) Services offered upon installation and any start up costs for first year. Please provide most commonly offered costs whether it be by license or station. | C26: OpConnect | D26: OP-NOC1-L2-1 | E26: $240.00 | G26: =E26-(E26*F26) -> $240.00
A27: 1 | B27: Basic Asset Management Services/Plan | G27: $0.00
A28: 1 | B28: Existing EV Station Upgrade, Swap-out from Single Port to Dual Port | G28: $0.00
A29: 1 | B29: Commissioning (average cost to certify and commission for use 1 EV Charging Station) | C29: OpConnect | D29: OP-ACTIVATION-L2 | E29: $75.00 | G29: $75.00
A30: 1 | B30: Training/Support to end user (provide as hourly rate) | C30: OpConnect | D30: OP-TRAINING | E30: $0.00 | F30: 15% | G30: $0.00
A31: 1 | B31: Turnkey Maintenance Plan that includes gauranteed up time and preventive maintenance | C31: OpConnect | D31: OP-MAINT-02 | E31: $275.00 | F31: 15% | G31: $233.75
A32: 1 | B32: Fleet Charging Module (standard software/module provided for average fleet sizes) | G32: $0.00
A33: MARKET BASKET SCORING: Total Cost for All Items (lowest cost will be determined by this number). The lowest cost will receive 150 Cost Points for the Market Basket section of Cost. All others will receive a portion of the cost points determined by a ratio of how their cost compares to the lowest cost as outlined in the RFP Evaluation Plan | G33: =SUM(G9:G32) -> $12,487.00
A35: Discount % Catalog Items
A36: Additional items and accessories not offered above can be purchased from this contract at the following % off the most current publicly published price list or catalog. Each Offeror shall submit with its bid a complete set of the published literature, catalog and/or price lists, which cover all accessories offered herein and an electronic copy, in Excel or PDF format. Offered minimum discount shall be greater than 0%. | G36: 15.0%
A38: DISCOUNT PERCENTAGE SCORING: The highest discount percentage will receive 150 Cost Points for the Discount Percentage section of Cost. All others will receive a portion of the cost points determined by a ratio of how their discount comparies to the highest discount as outlined in the RFP Evaluation Plan | F38: Average Proposed discount %: | G38: =IFERROR(AVERAGE(G36,F26:F32,F16:F22,F9:F12),0) -> 15.0%

Sheet Cat 2 - Level 3 DC-Fast Charger
A1: Category 2 - Level 3 DC Fast EV Chargers - Primary Tab
A2: Market Basket and Discount % Off Evaluation
B4: Are you seeking an award in this Category?
A6: Equipment
A7: Supplier may offer different discount percentages for each line item. Discount percentage for the product line item must be applied for that item for the duration of the contract, including updated or new versions of item.
A8: QTY. | B8: DESCRIPTION | C8: MANUFACTURER | D8: MODEL/PART # | E8: UNIT PRICE | F8: DISCOUNT % OFF | G8: FINAL ITEM COST
A9: 1 | B9: All In One Single Unit Station (Power Cabinet and Dispenser) | C9: ABB | D9: Tera 54 HV C + CCR / 6AGC108711 | E9: $43,825.24 | F9: 30% | G9: =E9-(E9*F9) -> $30,677.67
A12: Accessories & Additional Items
A13: Supplier may offer different discount percentages for each line item. Discount percentage for the product line item must be applied for that item for the duration of the contract, including updated or new versions of item.
A14: QTY. | B14: DESCRIPTION | C14: MANUFACTURER | D14: MODEL/PART # | E14: UNIT PRICE | F14: DISCOUNT % OFF | G14: FINAL ITEM COST
A15: 1 | B15: Cord Management Kit (most commonly sold cord management kit of suppliers which is sold to end users) | C15: ABB | D15: TL40018003819003 | E15: $1,656.20 | F15: 15% | G15: =E15-(E15*F15) -> $1,407.77
A16: 1 | B16: Replacement Cord (most commonly sold replacement cord of suppliers which is sold to end users) | G16: $0.00
A17: 1 | B17: 480 Volt Sub-Panel (most commonly sold by supplier) | G17: $0.00
A18: 1 | B18: Cellular Repeater (most common repeater used with station) | G18: $0.00
A19: 1 | B19: Wheel Stops: (Includes material and installation for 1 wheel stop) | G19: $0.00
A20: 1 | B20: Bollards: (Includes material and installation for 1 bollard) | G20: $0.00
A21: 1 | B21: Replacement RFID card | C21: OpConnect | D21: OPCONNECT-RFID | E21: $5.00 | F21: 15% | G21: $4.25
A22: Services
A23: Supplier may offer different discount percentages for each line item. Discount percentage for the product line item must be applied for that item for the duration of the contract, including updated or new versions of item.
A24: QTY. | B24: DESCRIPTION | C24: MANUFACTURER | D24: MODEL/PART # | E24: UNIT PRICE | F24: DISCOUNT % OFF | G24: FINAL ITEM COST
A25: 1 | B25: One Year Standard Networking (bundled with software) Services offered upon installation and any start up costs for first year. Please provide most commonly offered costs whether it be by license or station. | D25: OP-NOC3-L3-1 | E25: $500.00 | F25: 20% | G25: =E25-(E25*F25) -> $400.00
A26: 1 | B26: Basic Asset Management Services/Plan | G26: $0.00
A27: 1 | B27: Existing EV Station Upgrade, Swap-out from Single Port to Dual Port | G27: $0.00
A28: 1 | B28: Commissioning (average cost to certify and commission for use 1 EV Charging Station) | D28: OP-PROVISION-DCFC | E28: $2,400.00 | F28: 10% | G28: $2,160.00
A29: 1 | B29: Training/Support to end user (provide as hourly rate) | C29: OpConnect | D29: OP-TRAINING | E29: $0.00 | F29: 15% | G29: $0.00
A30: 1 | B30: Turnkey Maintenance Plan that includes gauranteed up time and preventive maintenance | D30: 6AGC068175 + 6AGX000021* | E30: =2861.67+1334.49 -> $4,196.16 | F30: 15% | G30: $3,566.74
A31: 1 | B31: Fleet Charging Module (standard software/module provided for average fleet sizes) | G31: $0.00
A32: MARKET BASKET SCORING: Total Cost for All Items (lowest cost will be determined by this number). The lowest cost will receive 150 Cost Points for the Market Basket section of Cost. All others will receive a portion of the cost points determined by a ratio of how their cost compares to the lowest cost as outlined in the RFP Evaluation Plan | G32: =SUM(G9:G31) -> $38,216.42
A34: Discount % Catalog Items
A35: Additional items and accessories not offered above can be purchased from this contract at the following % off the most current publicly published price list or catalog. Each Offeror shall submit with its bid a complete set of the published literature, catalog and/or price lists, which cover all accessories offered herein and an electronic copy, in Excel or PDF format. Offered minimum discount shall be greater than 0%. | G35: 15.0%
A37: DISCOUNT PERCENTAGE SCORING: The highest discount percentage will receive 150 Cost Points for the Discount Percentage section of Cost. All others will receive a portion of the cost points determined by a ratio of how their discount comparies to the highest discount as outlined in the RFP Evaluation Plan | F37: Average Proposed discount %: | G37: =IFERROR(AVERAGE(G35,F25:F31,F15:F21,F9:F11),0) -> 16.9%

Sheet + Optional - Category 1
A1: OPTIONAL - Category 1 - Level 2 EV Chargers
A2: This tab is to be used if supplier will offer additional manufacturers if they are awarded a contract. This tab is NOT used for scoring and awarding but required to be completed if supplier is planning on offering additional manufacturers. There are 4 tables to add up to 4 additional manufacturers. If supplier offers more than 4, they may copy and paste the table at the bottom to add additional manufacturers. As this is not used for scoring and awarding, these tables DO NOT need to have each line item filled out.
A4: How many additional manufacturers does supplier offer
A7: Additional Manufacturer # 1
A8: Equipment
A9: QTY. | B9: DESCRIPTION | C9: MANUFACTURER | D9: MODEL/PART # | E9: UNIT PRICE | F9: DISCOUNT % OFF | G9: FINAL STATE PRICE
A10: 1 | B10: Single Port Pedestal Mount | C10: OpConnect Networked ClipperCreek | D10: HCS-50R-N-C-P | E10: $3,008.00 | F10: 15.0% | G10: =E10-(E10*F10) -> $2,556.80
A11: 1 | B11: Dual Port Pedestal Mount | C11: OpConnect Networked ClipperCreek | D11: HCS-50R-N-HS-DP | E11: $5,147.00 | F11: 15.0% | G11: =E11-(E11*F11) -> $4,374.95
A12: 1 | B12: Single Port Wall Mount (can be ceiling mount, single telephone or, street lamp pole mounting) | C12: OpConnect Networked ClipperCreek | D12: HCS-50R-N-C | E12: $2,070.00 | F12: 15.0% | G12: =E12-(E12*F12) -> $1,759.50
A13: 1 | B13: Dual Port Wall Mount (can be ceiling mount, single telephone or, street lamp pole mounting) | C13: OpConnect Networked ClipperCreek | D13: HCS-50R-HS | E13: $3,988.00 | F13: 15.0% | G13: =E13-(E13*F13) -> $3,389.80
A14: Accessories & Additional Items
A15: QTY. | B15: DESCRIPTION | C15: MANUFACTURER | D15: MODEL/PART # | E15: UNIT PRICE | F15: DISCOUNT % OFF | G15: FINAL STATE PRICE
A16: 1 | B16: Cord Management Kit (most commonly sold cord management kit of suppliers which is sold to end users) | C16: OpConnect | D16: OC-0300-00-027 | E16: $1,132.00 | F16: 15% | G16: =E16-(E16*F16) -> $962.20
A17: 1 | B17: Replacement Cord (most commonly sold replacement cord of suppliers which is sold to end users) | G17: $0.00
A18: 1 | B18: 125 Amp 1-Phase 120/208 Volt Sub-Panel (most common sub panel sold by supplier) | G18: $0.00
A19: 1 | B19: Cellular Repeater (most common repeater used with station) | G19: $0.00
A20: 1 | B20: Wheel Stops: (Includes material and installation for 1 wheel stop) | G20: $0.00
A21: 1 | B21: Bollards: (Includes material and installation for 1 bollard) | G21: $0.00
A22: 1 | B22: Replacement RFID card | G22: $0.00
A23: Services
A24: QTY. | B24: DESCRIPTION | C24: MANUFACTURER | D24: MODEL/PART # | E24: UNIT PRICE | F24: DISCOUNT % OFF | G24: EXTENDED PRICE
A25: 1 | B25: One Year Standard Networking (bundled with software) Services offered upon installation and any start up costs for first year. Please provide most commonly offered costs whether it be by license or station. | C25: OpConnect | D25: OP-NOC1-L2-1 | E25: $240.00 | F25: 15% | G25: =E25-(E25*F25) -> $204.00
A26: 1 | B26: Basic Asset Management Services/Plan | G26: $0.00
A27: 1 | B27: Existing EV Station Upgrade, Swap-out from Single Port to Dual Port | G27: $0.00
A28: 1 | B28: Commissioning (average cost to certify and commission for use 1 EV Charging Station) | C28: OpConnect | D28: OP-ACTIVATION-L2 | E28: $75.00 | F28: 15% | G28: $63.75
A29: 1 | B29: Training/Support to end user (provide as hourly rate) | C29: OpConnect | D29: OP-TRAINING | E29: $0.00 | F29: 15% | G29: $0.00
A30: 1 | B30: Turnkey Maintenance Plan that includes gauranteed up time and preventive maintenance | C30: OpConnect | D30: OP-MAINT-02 | E30: $275.00 | F30: 15% | G30: $233.75
A31: 1 | B31: Fleet Charging Module (standard software/module provided for average fleet sizes) | G31: $0.00
A33: Discount % Catalog Items
A34: Additional items and accessories not offered above can be purchased from this contract at the following % off the most current publicly published price list or catalog. Offeror must also submit a list of additional items that fit within these areas that may also be purchased via the contract. | G34: 15.0%
A37: Additional Manufacturer # 2
A38: Equipment
A39: QTY. | B39: DESCRIPTION | C39: MANUFACTURER | D39: MODEL/PART # | E39: UNIT PRICE | F39: DISCOUNT % OFF | G39: FINAL STATE PRICE
A40: 1 | B40: Single Port Pedestal Mount | C40: OpConnect Networked ClipperCreek | D40: HCS-60R-N-C-P | E40: $3,441.00 | F40: 15.0% | G40: =E40-(E40*F40) -> $2,924.85
A41: 1 | B41: Dual Port Pedestal Mount | C41: OpConnect Networked ClipperCreek | D41: HCS-60R-N-HS-DP | E41: $5,937.00 | F41: 15.0% | G41: =E41-(E41*F41) -> $5,046.45
A42: 1 | B42: Single Port Wall Mount (can be ceiling mount, single telephone or, street lamp pole mounting) | C42: OpConnect Networked ClipperCreek | D42: HCS-60R-N-C | E42: $2,503.00 | F42: 15.0% | G42: =E42-(E42*F42) -> $2,127.55
A43: 1 | B43: Dual Port Wall Mount (can be ceiling mount, single telephone or, street lamp pole mounting) | C43: OpConnect Networked ClipperCreek | D43: HCS-60R-HS | E43: $4,778.00 | F43: 15.0% | G43: =E43-(E43*F43) -> $4,061.30
A44: Accessories & Additional Items
A45: QTY. | B45: DESCRIPTION | C45: MANUFACTURER | D45: MODEL/PART # | E45: UNIT PRICE | F45: DISCOUNT % OFF | G45: FINAL STATE PRICE
A46: 1 | B46: Cord Management Kit (most commonly sold cord management kit of suppliers which is sold to end users) | C46: OpConnect | D46: OC-0300-00-027 | E46: $1,132.00 | F46: 15% | G46: =E46-(E46*F46) -> $962.20
A47: 1 | B47: Replacement Cord (most commonly sold replacement cord of suppliers which is sold to end users) | G47: $0.00
A48: 1 | B48: 125 Amp 1-Phase 120/208 Volt Sub-Panel (most common sub panel sold by supplier) | G48: $0.00
A49: 1 | B49: Cellular Repeater (most common repeater used with station) | G49: $0.00
A50: 1 | B50: Wheel Stops: (Includes material and installation for 1 wheel stop) | G50: $0.00
A51: 1 | B51: Bollards: (Includes material and installation for 1 bollard) | G51: $0.00
A52: 1 | B52: Replacement RFID card | C52: OpConnect | D52: OPCONNECT-RFID | E52: $5.00 | F52: 15% | G52: $4.25
A53: Services
A54: QTY. | B54: DESCRIPTION | C54: MANUFACTURER | D54: MODEL/PART # | E54: UNIT PRICE | F54: DISCOUNT % OFF | G54: EXTENDED PRICE
A55: 1 | B55: One Year Standard Networking (bundled with software) Services offered upon installation and any start up costs for first year. Please provide most commonly offered costs whether it be by license or station. | C55: OpConnect | D55: OP-NOC1-L2-1 | E55: $240.00 | F55: 15% | G55: =E55-(E55*F55) -> $204.00
A56: 1 | B56: Basic Asset Management Services/Plan | G56: $0.00
A57: 1 | B57: Existing EV Station Upgrade, Swap-out from Single Port to Dual Port | G57: $0.00
A58: 1 | B58: Commissioning (average cost to certify and commission for use 1 EV Charging Station) | C58: OpConnect | D58: OP-ACTIVATION-L2 | E58: $75.00 | F58: 15% | G58: $63.75
A59: 1 | B59: Training/Support to end user (provide as hourly rate) | C59: OpConnect | D59: OP-TRAINING | E59: $0.00 | F59: 15% | G59: $0.00
A60: 1 | B60: Turnkey Maintenance Plan that includes gauranteed up time and preventive maintenance | C60: OpConnect | D60: OP-MAINT-02 | E60: $275.00 | F60: 15% | G60: $233.75
A61: 1 | B61: Fleet Charging Module (standard software/module provided for average fleet sizes) | G61: $0.00
A63: Discount % Catalog Items
A64: Additional items and accessories not offered above can be purchased from this contract at the following % off the most current publicly published price list or catalog. Offeror must also submit a list of additional items that fit within these areas that may also be purchased via the contract. | G64: 15.0%
A67: Additional Manufacturer # 3
A68: Equipment
A69: QTY. | B69: DESCRIPTION | C69: MANUFACTURER | D69: MODEL/PART # | E69: UNIT PRICE | F69: DISCOUNT % OFF | G69: FINAL STATE PRICE
A70: 1 | B70: Single Port Pedestal Mount | C70: OpConnect Networked ClipperCreek | D70: HCS-80R-N-C-P | E70: $4,248.00 | F70: 15.0% | G70: =E70-(E70*F70) -> $3,610.80
A71: 1 | B71: Dual Port Pedestal Mount | C71: OpConnect Networked ClipperCreek | D71: HCS-80R-N-HS-DP | E71: $7,479.00 | F71: 15.0% | G71: =E71-(E71*F71) -> $6,357.15
A72: 1 | B72: Single Port Wall Mount (can be ceiling mount, single telephone or, street lamp pole mounting) | C72: OpConnect Networked ClipperCreek | D72: HCS-80R-N-C | E72: $3,310.00 | F72: 15.0% | G72: =E72-(E72*F72) -> $2,813.50
A73: 1 | B73: Dual Port Wall Mount (can be ceiling mount, single telephone or, street lamp pole mounting) | C73: OpConnect Networked ClipperCreek | D73: HCS-80R-HS | E73: $6,320.00 | F73: 15.0% | G73: =E73-(E73*F73) -> $5,372.00
A74: Accessories & Additional Items
A75: QTY. | B75: DESCRIPTION | C75: MANUFACTURER | D75: MODEL/PART # | E75: UNIT PRICE | F75: DISCOUNT % OFF | G75: FINAL STATE PRICE
A76: 1 | B76: Cord Management Kit (most commonly sold cord management kit of suppliers which is sold to end users) | C76: OpConnect | D76: OC-0300-00-027 | E76: $1,132.00 | F76: 15% | G76: =E76-(E76*F76) -> $962.20
A77: 1 | B77: Replacement Cord (most commonly sold replacement cord of suppliers which is sold to end users) | G77: $0.00
A78: 1 | B78: 125 Amp 1-Phase 120/208 Volt Sub-Panel (most common sub panel sold by supplier) | G78: $0.00
A79: 1 | B79: Cellular Repeater (most common repeater used with station) | G79: $0.00
A80: 1 | B80: Wheel Stops: (Includes material and installation for 1 wheel stop) | G80: $0.00
A81: 1 | B81: Bollards: (Includes material and installation for 1 bollard) | G81: $0.00
A82: 1 | B82: Replacement RFID card | C82: OpConnect | D82: OPCONNECT-RFID | E82: $5.00 | F82: 15% | G82: $4.25
A83: Services
A84: QTY. | B84: DESCRIPTION | C84: MANUFACTURER | D84: MODEL/PART # | E84: UNIT PRICE | F84: DISCOUNT % OFF | G84: EXTENDED PRICE
A85: 1 | B85: One Year Standard Networking (bundled with software) Services offered upon installation and any start up costs for first year. Please provide most commonly offered costs whether it be by license or station. | C85: OpConnect | D85: OP-NOC1-L2-1 | E85: $300.00 | F85: 15% | G85: =E85-(E85*F85) -> $255.00
A86: 1 | B86: Basic Asset Management Services/Plan | G86: $0.00
A87: 1 | B87: Existing EV Station Upgrade, Swap-out from Single Port to Dual Port | G87: $0.00
A88: 1 | B88: Commissioning (average cost to certify and commission for use 1 EV Charging Station) | C88: OpConnect | D88: OP-ACTIVATION-L2 | E88: $75.00 | F88: 15% | G88: $63.75
A89: 1 | B89: Training/Support to end user (provide as hourly rate) | C89: OpConnect | D89: OP-TRAINING | E89: $0.00 | F89: 15% | G89: $0.00
A90: 1 | B90: Turnkey Maintenance Plan that includes gauranteed up time and preventive maintenance | C90: OpConnect | D90: OP-MAINT-02 | E90: $275.00 | F90: 15% | G90: $233.75
A91: 1 | B91: Fleet Charging Module (standard software/module provided for average fleet sizes) | G91: $0.00
A93: Discount % Catalog Items
A94: Additional items and accessories not offered above can be purchased from this contract at the following % off the most current publicly published price list or catalog. Offeror must also submit a list of additional items that fit within these areas that may also be purchased via the contract. | G94: 15.0%
A97: Additional Manufacturer # 4
A98: Equipment
A99: QTY. | B99: DESCRIPTION | C99: MANUFACTURER | D99: MODEL/PART # | E99: UNIT PRICE | F99: DISCOUNT % OFF | G99: FINAL STATE PRICE
A100: 1 | B100: Single Port Pedestal Mount | C100: OpConnect Networked ClipperCreek | D100: CS-100R-N-C-P | E100: $5,263.00 | F100: 15.0% | G100: =E100-(E100*F100) -> $4,473.55
A101: 1 | B101: Dual Port Pedestal Mount | C101: OpConnect Networked ClipperCreek | D101: CS-100R-N-HS-DP | E101: $9,479.00 | F101: 15.0% | G101: =E101-(E101*F101) -> $8,057.15
A102: 1 | B102: Single Port Wall Mount (can be ceiling mount, single telephone or, street lamp pole mounting) | C102: OpConnect Networked ClipperCreek | D102: CS-100R-N-C | E102: $4,325.00 | F102: 15.0% | G102: =E102-(E102*F102) -> $3,676.25
A103: 1 | B103: Dual Port Wall Mount (can be ceiling mount, single telephone or, street lamp pole mounting) | C103: OpConnect Networked ClipperCreek | D103: CS-100R-HS | E103: $8,320.00 | F103: 15.0% | G103: =E103-(E103*F103) -> $7,072.00
A104: Accessories & Additional Items
A105: QTY. | B105: DESCRIPTION | C105: MANUFACTURER | D105: MODEL/PART # | E105: UNIT PRICE | F105: DISCOUNT % OFF | G105: FINAL STATE PRICE
A106: 1 | B106: Cord Management Kit (most commonly sold cord management kit of suppliers which is sold to end users) | C106: OpConnect | D106: OC-0300-00-027 | E106: $1,132.00 | F106: 15% | G106: =E106-(E106*F106) -> $962.20
A107: 1 | B107: Replacement Cord (most commonly sold replacement cord of suppliers which is sold to end users) | G107: $0.00
A108: 1 | B108: 125 Amp 1-Phase 120/208 Volt Sub-Panel (most common sub panel sold by supplier) | G108: $0.00
A109: 1 | B109: Cellular Repeater (most common repeater used with station) | G109: $0.00
A110: 1 | B110: Wheel Stops: (Includes material and installation for 1 wheel stop) | G110: $0.00
A111: 1 | B111: Bollards: (Includes material and installation for 1 bollard) | G111: $0.00
A112: 1 | B112: Replacement RFID card | C112: OpConnect | D112: OPCONNECT-RFID | E112: $5.00 | F112: 15% | G112: $4.25
A113: Services
A114: QTY. | B114: DESCRIPTION | C114: MANUFACTURER | D114: MODEL/PART # | E114: UNIT PRICE | F114: DISCOUNT % OFF | G114: EXTENDED PRICE
A115: 1 | B115: One Year Standard Networking (bundled with software) Services offered upon installation and any start up costs for first year. Please provide most commonly offered costs whether it be by license or station. | C115: OpConnect | D115: OP-NOC1-L2-1 | E115: $300.00 | F115: 15% | G115: =E115-(E115*F115) -> $255.00
A116: 1 | B116: Basic Asset Management Services/Plan | G116: $0.00
A117: 1 | B117: Existing EV Station Upgrade, Swap-out from Single Port to Dual Port | G117: $0.00
A118: 1 | B118: Commissioning (average cost to certify and commission for use 1 EV Charging Station) | C118: OpConnect | D118: OP-ACTIVATION-L2 | E118: $75.00 | F118: 15% | G118: $63.75
A119: 1 | B119: Training/Support to end user (provide as hourly rate) | C119: OpConnect | D119: OP-TRAINING | E119: $0.00 | F119: 15% | G119: $0.00
A120: 1 | B120: Turnkey Maintenance Plan that includes gauranteed up time and preventive maintenance | C120: OpConnect | D120: OP-MAINT-02 | E120: $275.00 | F120: 15% | G120: $233.75
A121: 1 | B121: Fleet Charging Module (standard software/module provided for average fleet sizes) | G121: $0.00
A123: Discount % Catalog Items
A124: Additional items and accessories not offered above can be purchased from this contract at the following % off the most current publicly published price list or catalog. Offeror must also submit a list of additional items that fit within these areas that may also be purchased via the contract. | G124: 15.0%

Sheet + Optional - Category 1(ADD'L)
A1: OPTIONAL - Category 1 - Level 2 EV Chargers
A2: This tab is to be used if supplier will offer additional manufacturers if they are awarded a contract. This tab is NOT used for scoring and awarding but required to be completed if supplier is planning on offering additional manufacturers. There are 4 tables to add up to 4 additional manufacturers. If supplier offers more than 4, they may copy and paste the table at the bottom to add additional manufacturers. As this is not used for scoring and awarding, these tables DO NOT need to have each line item filled out.
A4: How many additional manufacturers does supplier offer
A7: Additional Manufacturer # 1
A8: Equipment
A9: QTY. | B9: DESCRIPTION | C9: MANUFACTURER | D9: MODEL/PART # | E9: UNIT PRICE | F9: DISCOUNT % OFF | G9: FINAL STATE PRICE
A10: 1 | B10: Single Port Pedestal Mount | C10: Liteon | D10: SC3 | E10: =E12+938 -> $2,045.00 | F10: 15.0% | G10: =E10-(E10*F10) -> $1,738.25
A11: 1 | B11: Dual Port Pedestal Mount | C11: Liteon | D11: SC3 | E11: =E13+938+165 -> $3,317.00 | F11: 15.0% | G11: =E11-(E11*F11) -> $2,819.45
A12: 1 | B12: Single Port Wall Mount (can be ceiling mount, single telephone or, street lamp pole mounting) | C12: Liteon | D12: SC3 | E12: $1,107.00 | F12: 15.0% | G12: =E12-(E12*F12) -> $940.95
A13: 1 | B13: Dual Port Wall Mount (can be ceiling mount, single telephone or, street lamp pole mounting) | C13: Liteon | D13: SC3 | E13: =E12*2 -> $2,214.00 | F13: 15.0% | G13: =E13-(E13*F13) -> $1,881.90
A14: Accessories & Additional Items
A15: QTY. | B15: DESCRIPTION | C15: MANUFACTURER | D15: MODEL/PART # | E15: UNIT PRICE | F15: DISCOUNT % OFF | G15: FINAL STATE PRICE
A16: 1 | B16: Cord Management Kit (most commonly sold cord management kit of suppliers which is sold to end users) | F16: 15% | G16: =E16-(E16*F16) -> $0.00
A17: 1 | B17: Replacement Cord (most commonly sold replacement cord of suppliers which is sold to end users) | G17: $0.00
A18: 1 | B18: 125 Amp 1-Phase 120/208 Volt Sub-Panel (most common sub panel sold by supplier) | G18: $0.00
A19: 1 | B19: Cellular Repeater (most common repeater used with station) | G19: $0.00
A20: 1 | B20: Wheel Stops: (Includes material and installation for 1 wheel stop) | G20: $0.00
A21: 1 | B21: Bollards: (Includes material and installation for 1 bollard) | G21: $0.00
A22: 1 | B22: Replacement RFID card | G22: $0.00
A23: Services
A24: QTY. | B24: DESCRIPTION | C24: MANUFACTURER | D24: MODEL/PART # | E24: UNIT PRICE | F24: DISCOUNT % OFF | G24: EXTENDED PRICE
A25: 1 | B25: One Year Standard Networking (bundled with software) Services offered upon installation and any start up costs for first year. Please provide most commonly offered costs whether it be by license or station. | C25: OpConnect | D25: OP-NOC1-L2HP-1 | E25: $300.00 | F25: 15% | G25: =E25-(E25*F25) -> $255.00
A26: 1 | B26: Basic Asset Management Services/Plan | G26: $0.00
A27: 1 | B27: Existing EV Station Upgrade, Swap-out from Single Port to Dual Port | G27: $0.00
A28: 1 | B28: Commissioning (average cost to certify and commission for use 1 EV Charging Station) | G28: $0.00
A29: 1 | B29: Training/Support to end user (provide as hourly rate) | G29: $0.00
A30: 1 | B30: Turnkey Maintenance Plan that includes gauranteed up time and preventive maintenance | G30: $0.00
A31: 1 | B31: Fleet Charging Module (standard software/module provided for average fleet sizes) | G31: $0.00
A33: Discount % Catalog Items
A34: Additional items and accessories not offered above can be purchased from this contract at the following % off the most current publicly published price list or catalog. Offeror must also submit a list of additional items that fit within these areas that may also be purchased via the contract. | G34: 15.0%
A37: Additional Manufacturer # 2
A38: Equipment
A39: QTY. | B39: DESCRIPTION | C39: MANUFACTURER | D39: MODEL/PART # | E39: UNIT PRICE | F39: DISCOUNT % OFF | G39: FINAL STATE PRICE
A40: 1 | B40: Single Port Pedestal Mount | C40: LiteOn | D40: IC3 | E40: =E42+938 -> $2,512.00 | F40: 15.0% | G40: =E40-(E40*F40) -> $2,135.20
A41: 1 | B41: Dual Port Pedestal Mount | C41: LiteOn | D41: IC3 | E41: =E43+938+165 -> $4,251.00 | F41: 15.0% | G41: =E41-(E41*F41) -> $3,613.35
A42: 1 | B42: Single Port Wall Mount (can be ceiling mount, single telephone or, street lamp pole mounting) | C42: LiteOn | D42: IC3 | E42: $1,574.00 | F42: 15.0% | G42: =E42-(E42*F42) -> $1,337.90
A43: 1 | B43: Dual Port Wall Mount (can be ceiling mount, single telephone or, street lamp pole mounting) | C43: LiteOn | D43: IC3 | E43: =E42*2 -> $3,148.00 | F43: 15.0% | G43: =E43-(E43*F43) -> $2,675.80
A44: Accessories & Additional Items
A45: QTY. | B45: DESCRIPTION | C45: MANUFACTURER | D45: MODEL/PART # | E45: UNIT PRICE | F45: DISCOUNT % OFF | G45: FINAL STATE PRICE
A46: 1 | B46: Cord Management Kit (most commonly sold cord management kit of suppliers which is sold to end users) | C46: OpConnect | D46: OC-0300-00-027 | E46: $1,132.00 | F46: 15% | G46: =E46-(E46*F46) -> $962.20
A47: 1 | B47: Replacement Cord (most commonly sold replacement cord of suppliers which is sold to end users) | G47: $0.00
A48: 1 | B48: 125 Amp 1-Phase 120/208 Volt Sub-Panel (most common sub panel sold by supplier) | G48: $0.00
A49: 1 | B49: Cellular Repeater (most common repeater used with station) | G49: $0.00
A50: 1 | B50: Wheel Stops: (Includes material and installation for 1 wheel stop) | G50: $0.00
A51: 1 | B51: Bollards: (Includes material and installation for 1 bollard) | G51: $0.00
A52: 1 | B52: Replacement RFID card | C52: OpConnect | D52: OPCONNECT-RFID | E52: $5.00 | F52: 15% | G52: $4.25
A53: Services
A54: QTY. | B54: DESCRIPTION | C54: MANUFACTURER | D54: MODEL/PART # | E54: UNIT PRICE | F54: DISCOUNT % OFF | G54: EXTENDED PRICE
A55: 1 | B55: One Year Standard Networking (bundled with software) Services offered upon installation and any start up costs for first year. Please provide most commonly offered costs whether it be by license or station. | G55: =E55-(E55*F55) -> $0.00
A56: 1 | B56: Basic Asset Management Services/Plan | G56: $0.00
A57: 1 | B57: Existing EV Station Upgrade, Swap-out from Single Port to Dual Port | G57: $0.00
A58: 1 | B58: Commissioning (average cost to certify and commission for use 1 EV Charging Station) | G58: $0.00
A59: 1 | B59: Training/Support to end user (provide as hourly rate) | G59: $0.00
A60: 1 | B60: Turnkey Maintenance Plan that includes gauranteed up time and preventive maintenance | G60: $0.00
A61: 1 | B61: Fleet Charging Module (standard software/module provided for average fleet sizes) | G61: $0.00
A63: Discount % Catalog Items
A64: Additional items and accessories not offered above can be purchased from this contract at the following % off the most current publicly published price list or catalog. Offeror must also submit a list of additional items that fit within these areas that may also be purchased via the contract. | G64: 15.0%
A67: Additional Manufacturer # 3
A68: Equipment
A69: QTY. | B69: DESCRIPTION | C69: MANUFACTURER | D69: MODEL/PART # | E69: UNIT PRICE | F69: DISCOUNT % OFF | G69: FINAL STATE PRICE
A70: 1 | B70: Single Port Pedestal Mount | C70: Liteon | D70: IC80 | E70: =E72+938 -> $3,724.00 | F70: 15.0% | G70: =E70-(E70*F70) -> $3,165.40
A71: 1 | B71: Dual Port Pedestal Mount | C71: Liteon | D71: IC80 | E71: =E73+938+215 -> $6,725.00 | F71: 15.0% | G71: =E71-(E71*F71) -> $5,716.25
A72: 1 | B72: Single Port Wall Mount (can be ceiling mount, single telephone or, street lamp pole mounting) | C72: Liteon | D72: IC80 | E72: $2,786.00 | F72: 15.0% | G72: =E72-(E72*F72) -> $2,368.10
A73: 1 | B73: Dual Port Wall Mount (can be ceiling mount, single telephone or, street lamp pole mounting) | C73: Liteon | D73: IC80 | E73: =E72*2 -> $5,572.00 | F73: 15.0% | G73: =E73-(E73*F73) -> $4,736.20
A74: Accessories & Additional Items
A75: QTY. | B75: DESCRIPTION | C75: MANUFACTURER | D75: MODEL/PART # | E75: UNIT PRICE | F75: DISCOUNT % OFF | G75: FINAL STATE PRICE
A76: 1 | B76: Cord Management Kit (most commonly sold cord management kit of suppliers which is sold to end users) | F76: 15% | G76: =E76-(E76*F76) -> $0.00
A77: 1 | B77: Replacement Cord (most commonly sold replacement cord of suppliers which is sold to end users) | G77: $0.00
A78: 1 | B78: 125 Amp 1-Phase 120/208 Volt Sub-Panel (most common sub panel sold by supplier) | G78: $0.00
A79: 1 | B79: Cellular Repeater (most common repeater used with station) | G79: $0.00
A80: 1 | B80: Wheel Stops: (Includes material and installation for 1 wheel stop) | G80: $0.00
A81: 1 | B81: Bollards: (Includes material and installation for 1 bollard) | G81: $0.00
A82: 1 | B82: Replacement RFID card | F82: 15% | G82: $0.00
A83: Services
A84: QTY. | B84: DESCRIPTION | C84: MANUFACTURER | D84: MODEL/PART # | E84: UNIT PRICE | F84: DISCOUNT % OFF | G84: EXTENDED PRICE
A85: 1 | B85: One Year Standard Networking (bundled with software) Services offered upon installation and any start up costs for first year. Please provide most commonly offered costs whether it be by license or station. | F85: 15% | G85: =E85-(E85*F85) -> $0.00
A86: 1 | B86: Basic Asset Management Services/Plan | G86: $0.00
A87: 1 | B87: Existing EV Station Upgrade, Swap-out from Single Port to Dual Port | G87: $0.00
A88: 1 | B88: Commissioning (average cost to certify and commission for use 1 EV Charging Station) | F88: 15% | G88: $0.00
A89: 1 | B89: Training/Support to end user (provide as hourly rate) | F89: 15% | G89: $0.00
A90: 1 | B90: Turnkey Maintenance Plan that includes gauranteed up time and preventive maintenance | C90: OpConnect | D90: OP-MAINT-HP02 | E90: $315.00 | F90: 15% | G90: $267.75
A91: 1 | B91: Fleet Charging Module (standard software/module provided for average fleet sizes) | G91: $0.00
A93: Discount % Catalog Items
A94: Additional items and accessories not offered above can be purchased from this contract at the following % off the most current publicly published price list or catalog. Offeror must also submit a list of additional items that fit within these areas that may also be purchased via the contract. | G94: 15.0%
A97: Additional Manufacturer # 4
A98: Equipment
A99: QTY. | B99: DESCRIPTION | C99: MANUFACTURER | D99: MODEL/PART # | E99: UNIT PRICE | F99: DISCOUNT % OFF | G99: FINAL STATE PRICE
A100: 1 | B100: Single Port Pedestal Mount | C100: Liteon | D100: SC80 | E100: =E102+938 -> $3,261.00 | F100: 15.0% | G100: =E100-(E100*F100) -> $2,771.85
A101: 1 | B101: Dual Port Pedestal Mount | C101: Liteon | D101: SC80 | E101: =E103+938+165 -> $5,749.00 | F101: 15.0% | G101: =E101-(E101*F101) -> $4,886.65
A102: 1 | B102: Single Port Wall Mount (can be ceiling mount, single telephone or, street lamp pole mounting) | C102: Liteon | D102: SC80 | E102: $2,323.00 | F102: 15.0% | G102: =E102-(E102*F102) -> $1,974.55
A103: 1 | B103: Dual Port Wall Mount (can be ceiling mount, single telephone or, street lamp pole mounting) | C103: Liteon | D103: SC80 | E103: =E102*2 -> $4,646.00 | F103: 15.0% | G103: =E103-(E103*F103) -> $3,949.10
A104: Accessories & Additional Items
A105: QTY. | B105: DESCRIPTION | C105: MANUFACTURER | D105: MODEL/PART # | E105: UNIT PRICE | F105: DISCOUNT % OFF | G105: FINAL STATE PRICE
A106: 1 | B106: Cord Management Kit (most commonly sold cord management kit of suppliers which is sold to end users) | F106: 15% | G106: =E106-(E106*F106) -> $0.00
A107: 1 | B107: Replacement Cord (most commonly sold replacement cord of suppliers which is sold to end users) | G107: $0.00
A108: 1 | B108: 125 Amp 1-Phase 120/208 Volt Sub-Panel (most common sub panel sold by supplier) | G108: $0.00
A109: 1 | B109: Cellular Repeater (most common repeater used with station) | G109: $0.00
A110: 1 | B110: Wheel Stops: (Includes material and installation for 1 wheel stop) | G110: $0.00
A111: 1 | B111: Bollards: (Includes material and installation for 1 bollard) | G111: $0.00
A112: 1 | B112: Replacement RFID card | F112: 15% | G112: $0.00
A113: Services
A114: QTY. | B114: DESCRIPTION | C114: MANUFACTURER | D114: MODEL/PART # | E114: UNIT PRICE | F114: DISCOUNT % OFF | G114: EXTENDED PRICE
A115: 1 | B115: One Year Standard Networking (bundled with software) Services offered upon installation and any start up costs for first year. Please provide most commonly offered costs whether it be by license or station. | F115: 15% | G115: =E115-(E115*F115) -> $0.00
A116: 1 | B116: Basic Asset Management Services/Plan | G116: $0.00
A117: 1 | B117: Existing EV Station Upgrade, Swap-out from Single Port to Dual Port | G117: $0.00
A118: 1 | B118: Commissioning (average cost to certify and commission for use 1 EV Charging Station) | F118: 15% | G118: $0.00
A119: 1 | B119: Training/Support to end user (provide as hourly rate) | F119: 15% | G119: $0.00
A120: 1 | B120: Turnkey Maintenance Plan that includes gauranteed up time and preventive maintenance | C120: OpConnect | D120: OP-MAINT-HP02 | E120: $315.00 | F120: 15% | G120: $267.75
A121: 1 | B121: Fleet Charging Module (standard software/module provided for average fleet sizes) | G121: $0.00
A124: Additional Manufacturer # 5
A125: Equipment
A126: QTY. | B126: DESCRIPTION | C126: MANUFACTURER | D126: MODEL/PART # | E126: UNIT PRICE | F126: DISCOUNT % OFF | G126: FINAL STATE PRICE
A127: 1 | B127: Single Port Pedestal Mount | C127: BTC Power (30 A) | D127: L2P-30-240-16-003 | E127: $4,757.00 | F127: 10.0% | G127: =E127-(E127*F127) -> $4,281.30
A128: 1 | B128: Dual Port Pedestal Mount | C128: BTC Power (30 A) | D128: L2P-30-240-15-003 | E128: $5,450.00 | F128: 10.0% | G128: =E128-(E128*F128) -> $4,905.00
A129: 1 | B129: Single Port Wall Mount (can be ceiling mount, single telephone or, street lamp pole mounting) | C129: BTC Power (30 A) | D129: L2W-30-240-16-003 | E129: $4,752.00 | F129: 10.0% | G129: =E129-(E129*F129) -> $4,276.80
A130: 1 | B130: Dual Port Wall Mount (can be ceiling mount, single telephone or, street lamp pole mounting) | C130: BTC Power (30 A) | D130: L2W-30-240-15-003 | E130: $5,482.00 | F130: 10.0% | G130: =E130-(E130*F130) -> $4,933.80
A131: Accessories & Additional Items
A132: QTY. | B132: DESCRIPTION | C132: MANUFACTURER | D132: MODEL/PART # | E132: UNIT PRICE | F132: DISCOUNT % OFF | G132: FINAL STATE PRICE
A133: 1 | B133: Cord Management Kit (most commonly sold cord management kit of suppliers which is sold to end users) | C133: BTC Power (30 A Retractors) | D133: 130-0745-01 | E133: $300.00 | F133: 5% | G133: =E133-(E133*F133) -> $285.00
A134: 1 | B134: Replacement Cord (most commonly sold replacement cord of suppliers which is sold to end users) | G134: $0.00
A135: 1 | B135: 125 Amp 1-Phase 120/208 Volt Sub-Panel (most common sub panel sold by supplier) | G135: $0.00
A136: 1 | B136: Cellular Repeater (most common repeater used with station) | G136: $0.00
A137: 1 | B137: Wheel Stops: (Includes material and installation for 1 wheel stop) | G137: $0.00
A138: 1 | B138: Bollards: (Includes material and installation for 1 bollard) | G138: $0.00
A139: 1 | B139: Replacement RFID card | F139: 15% | G139: $0.00
A140: Services
A141: QTY. | B141: DESCRIPTION | C141: MANUFACTURER | D141: MODEL/PART # | E141: UNIT PRICE | F141: DISCOUNT % OFF | G141: EXTENDED PRICE
A142: 1 | B142: One Year Standard Networking (bundled with software) Services offered upon installation and any start up costs for first year. Please provide most commonly offered costs whether it be by license or station. | F142: 15% | G142: =E142-(E142*F142) -> $0.00
A143: 1 | B143: Basic Asset Management Services/Plan | G143: $0.00
A144: 1 | B144: Existing EV Station Upgrade, Swap-out from Single Port to Dual Port | G144: $0.00
A145: 1 | B145: Commissioning (average cost to certify and commission for use 1 EV Charging Station) | F145: 15% | G145: $0.00
A146: 1 | B146: Training/Support to end user (provide as hourly rate) | F146: 15% | G146: $0.00
A147: 1 | B147: Turnkey Maintenance Plan that includes gauranteed up time and preventive maintenance | F147: 15% | G147: $0.00
A148: 1 | B148: Fleet Charging Module (standard software/module provided for average fleet sizes) | G148: $0.00
A151: Additional Manufacturer # 6
A152: Equipment
A153: QTY. | B153: DESCRIPTION | C153: MANUFACTURER | D153: MODEL/PART # | E153: UNIT PRICE | F153: DISCOUNT % OFF | G153: FINAL STATE PRICE
A154: 1 | B154: Single Port Pedestal Mount | C154: BTC Power (40 A) | D154: L2P-40-240-16-003 | E154: $4,881.00 | F154: 10.0% | G154: =E154-(E154*F154) -> $4,392.90
A155: 1 | B155: Dual Port Pedestal Mount | C155: BTC Power (40 A) | D155: L2P-40-240-15-003 | E155: $5,769.00 | F155: 10.0% | G155: =E155-(E155*F155) -> $5,192.10
A156: 1 | B156: Single Port Wall Mount (can be ceiling mount, single telephone or, street lamp pole mounting) | C156: BTC Power (40 A) | D156: L2W-40-240-16-003 | E156: $4,841.00 | F156: 10.0% | G156: =E156-(E156*F156) -> $4,356.90
A157: 1 | B157: Dual Port Wall Mount (can be ceiling mount, single telephone or, street lamp pole mounting) | C157: BTC Power (40 A) | D157: L2W-40-240-15-003 | E157: $5,840.00 | F157: 10.0% | G157: =E157-(E157*F157) -> $5,256.00
A158: Accessories & Additional Items
A159: QTY. | B159: DESCRIPTION | C159: MANUFACTURER | D159: MODEL/PART # | E159: UNIT PRICE | F159: DISCOUNT % OFF | G159: FINAL STATE PRICE
A160: 1 | B160: Cord Management Kit (most commonly sold cord management kit of suppliers which is sold to end users) | C160: BTC Power (40 A Retractors) | D160: 130-0746-01 | E160: $350.00 | F160: 5% | G160: =E160-(E160*F160) -> $332.50
A161: 1 | B161: Replacement Cord (most commonly sold replacement cord of suppliers which is sold to end users) | G161: $0.00
A162: 1 | B162: 125 Amp 1-Phase 120/208 Volt Sub-Panel (most common sub panel sold by supplier) | G162: $0.00
A163: 1 | B163: Cellular Repeater (most common repeater used with station) | G163: $0.00
A164: 1 | B164: Wheel Stops: (Includes material and installation for 1 wheel stop) | G164: $0.00
A165: 1 | B165: Bollards: (Includes material and installation for 1 bollard) | G165: $0.00
A166: 1 | B166: Replacement RFID card | F166: 15% | G166: $0.00
A167: Services
A168: QTY. | B168: DESCRIPTION | C168: MANUFACTURER | D168: MODEL/PART # | E168: UNIT PRICE | F168: DISCOUNT % OFF | G168: EXTENDED PRICE
A169: 1 | B169: One Year Standard Networking (bundled with software) Services offered upon installation and any start up costs for first year. Please provide most commonly offered costs whether it be by license or station. | F169: 15% | G169: =E169-(E169*F169) -> $0.00
A170: 1 | B170: Basic Asset Management Services/Plan | G170: $0.00
A171: 1 | B171: Existing EV Station Upgrade, Swap-out from Single Port to Dual Port | G171: $0.00
A172: 1 | B172: Commissioning (average cost to certify and commission for use 1 EV Charging Station) | F172: 15% | G172: $0.00
A173: 1 | B173: Training/Support to end user (provide as hourly rate) | F173: 15% | G173: $0.00
A174: 1 | B174: Turnkey Maintenance Plan that includes gauranteed up time and preventive maintenance | F174: 15% | G174: $0.00
A175: 1 | B175: Fleet Charging Module (standard software/module provided for average fleet sizes) | G175: $0.00
A177: Additional Manufacturer # 7
A178: Equipment
A179: QTY. | B179: DESCRIPTION | C179: MANUFACTURER | D179: MODEL/PART # | E179: UNIT PRICE | F179: DISCOUNT % OFF | G179: FINAL STATE PRICE
A180: 1 | B180: Single Port Pedestal Mount | C180: BTC Power (70 A) | D180: L2P-70-240-16-003 | E180: $5,094.00 | F180: 10.0% | G180: =E180-(E180*F180) -> $4,584.60
A181: 1 | B181: Dual Port Pedestal Mount | C181: N/A | D181: N/A | F181: 10.0% | G181: =E181-(E181*F181) -> $0.00
A182: 1 | B182: Single Port Wall Mount (can be ceiling mount, single telephone or, street lamp pole mounting) | C182: BTC Power (70 A) | D182: L2W-70-240-16-003 | E182: $4,973.00 | F182: 10.0% | G182: =E182-(E182*F182) -> $4,475.70
A183: 1 | B183: Dual Port Wall Mount (can be ceiling mount, single telephone or, street lamp pole mounting) | C183: N/A | D183: N/A | F183: 10.0% | G183: =E183-(E183*F183) -> $0.00
A184: Accessories & Additional Items
A185: QTY. | B185: DESCRIPTION | C185: MANUFACTURER | D185: MODEL/PART # | E185: UNIT PRICE | F185: DISCOUNT % OFF | G185: FINAL STATE PRICE
A186: 1 | B186: Cord Management Kit (most commonly sold cord management kit of suppliers which is sold to end users) | C186: BTC Power (70 A Retractors) | D186: 130-0746-01 | E186: $350.00 | F186: 5% | G186: =E186-(E186*F186) -> $332.50
A187: 1 | B187: Replacement Cord (most commonly sold replacement cord of suppliers which is sold to end users) | G187: $0.00
A188: 1 | B188: 125 Amp 1-Phase 120/208 Volt Sub-Panel (most common sub panel sold by supplier) | G188: $0.00
A189: 1 | B189: Cellular Repeater (most common repeater used with station) | G189: $0.00
A190: 1 | B190: Wheel Stops: (Includes material and installation for 1 wheel stop) | G190: $0.00
A191: 1 | B191: Bollards: (Includes material and installation for 1 bollard) | G191: $0.00
A192: 1 | B192: Replacement RFID card | F192: 15% | G192: $0.00
A193: Services
A194: QTY. | B194: DESCRIPTION | C194: MANUFACTURER | D194: MODEL/PART # | E194: UNIT PRICE | F194: DISCOUNT % OFF | G194: EXTENDED PRICE
A195: 1 | B195: One Year Standard Networking (bundled with software) Services offered upon installation and any start up costs for first year. Please provide most commonly offered costs whether it be by license or station. | F195: 15% | G195: =E195-(E195*F195) -> $0.00
A196: 1 | B196: Basic Asset Management Services/Plan | G196: $0.00
A197: 1 | B197: Existing EV Station Upgrade, Swap-out from Single Port to Dual Port | G197: $0.00
A198: 1 | B198: Commissioning (average cost to certify and commission for use 1 EV Charging Station) | F198: 15% | G198: $0.00
A199: 1 | B199: Training/Support to end user (provide as hourly rate) | F199: 15% | G199: $0.00
A200: 1 | B200: Turnkey Maintenance Plan that includes gauranteed up time and preventive maintenance | F200: 15% | G200: $0.00
A201: 1 | B201: Fleet Charging Module (standard software/module provided for average fleet sizes) | G201: $0.00
A203: Additional Manufacturer # 8
A204: Equipment
A205: QTY. | B205: DESCRIPTION | C205: MANUFACTURER | D205: MODEL/PART # | E205: UNIT PRICE | F205: DISCOUNT % OFF | G205: FINAL STATE PRICE
A206: 1 | B206: Single Port Pedestal Mount | F206: 10.00% | G206: $0.00
A207: 1 | B207: Dual Port Pedestal Mount | F207: 10.00% | G207: $0.00
A208: 1 | B208: Single Port Wall Mount (can be ceiling mount, single telephone or, street lamp pole mounting) | C208: ClipperCreek | D208: HCS-40R-C17-L25-170 | E208: $916.00 | F208: 10.00% | G208: $824.40
A209: 1 | B209: Dual Port Wall Mount (can be ceiling mount, single telephone or, street lamp pole mounting) | F209: 10.00% | G209: $0.00
A210: Accessories & Additional Items
A211: QTY. | B211: DESCRIPTION | C211: MANUFACTURER | D211: MODEL/PART # | E211: UNIT PRICE | F211: DISCOUNT % OFF | G211: FINAL STATE PRICE
A212: 1 | B212: Single Cord Wall Management Kit (most commonly sold cord management kit of suppliers which is sold to end users) | C212: Enphase | D212: HCS-WALLMOUNT-RETRACTOR-CC | E212: $549.00 | F212: 15% | G212: $521.55
A213: 1 | B213: Dual Pedestal Cord Management Kit (most commonly sold cord management kit of suppliers which is sold to end users) | C213: OpConnect | D213: OC-0300-00-028 | E213: $1,605.00 | F213: 15% | G213: $1,524.75
A214: 1 | B214: Pedestal (Can be single or Dual Mounted) | C214: OpConnect | D214: OC-00-024 | E214: $938.00 | F214: 15% | G214: $891.10
A215: 1 | B215: Dual Mounting Kit | C215: OpConnect | D215: OC-00-030-HCS | E215: $215.00 | F215: 15% | G215: $204.25
A216: 1 | B216: Cellular Repeater (most common repeater used with station) | G216: $0.00
A217: 1 | B217: Wheel Stops: (Includes material and installation for 1 wheel stop) | G217: $0.00
A218: 1 | B218: Bollards: (Includes material and installation for 1 bollard) | G218: $0.00
... 114 more rows

Sheet + Optional - Category 2
A1: OPTIONAL - Category 2 - Level 3 DC Fast Charger
A2: This tab is to be used if supplier will offer additional manufacturers if they are awarded a contract. This tab is NOT used for scoring and awarding but required to be completed if supplier is planning on offering additional manufacturers. There are 4 tables to add up to 4 additional manufacturers. If supplier offers more than 4, they may copy and paste the table at the bottom to add additional manufacturers. As this is not used for scoring and awarding, these tables DO NOT need to have each line item filled out.
A4: How many additional manufacturers does supplier offer
A6: Additional Manufacturer # 1
A7: Equipment
A8: QTY. | B8: DESCRIPTION | C8: MANUFACTURER | D8: MODEL/PART # | E8: UNIT PRICE | F8: DISCOUNT % OFF | G8: FINAL ITEM COST
A9: 1 | B9: All In One Single Unit Station (Power Cabinet and Dispenser) | C9: ABB | D9: Terra 124 CC HC + CCR / 6AGC112997 | E9: $91,582.10 | F9: 30% | G9: =E9-(E9*F9) -> $64,107.47
A12: Accessories & Additional Items
A13: QTY. | B13: DESCRIPTION | C13: MANUFACTURER | D13: MODEL/PART # | E13: UNIT PRICE | F13: DISCOUNT % OFF | G13: FINAL ITEM COST
A14: 1 | B14: Cord Management Kit (most commonly sold cord management kit of suppliers which is sold to end users) | C14: ABB | D14: TL40025683819003 | E14: $1,898.67 | F14: 20% | G14: =E14-(E14*F14) -> $1,518.94
A15: 1 | B15: Replacement Cord (most commonly sold replacement cord of suppliers which is sold to end users) | G15: $0.00
A16: 1 | B16: 480 Volt Sub-Panel (most commonly sold by supplier) | G16: $0.00
A17: 1 | B17: Cellular Repeater (most common repeater used with station) | G17: $0.00
A18: 1 | B18: Wheel Stops: (Includes material and installation for 1 wheel stop) | G18: $0.00
A19: 1 | B19: Bollards: (Includes material and installation for 1 bollard) | G19: $0.00
A20: 1 | B20: Replacement RFID card | G20: $0.00
A21: Services
A22: QTY. | B22: DESCRIPTION | C22: MANUFACTURER | D22: MODEL/PART # | E22: UNIT PRICE | F22: DISCOUNT % OFF | G22: FINAL ITEM COST
A23: 1 | B23: Networking (bundled with software) - Annual network data fees (including start up and initiation costs) | D23: OP-NOC3-L3-1 | E23: $500.00 | F23: 20% | G23: =E23-(E23*F23) -> $400.00
A24: 1 | B24: Basic Asset Management Services/Plan | G24: $0.00
A25: 1 | B25: Existing EV Station Upgrade, Swap-out from Single Port to Dual Port | G25: $0.00
A26: 1 | B26: Commissioning (average cost to certify and commission for use 1 EV Charging Station) | D26: OP-PROVISION-DCFC | E26: $2,400.00 | F26: 10% | G26: $2,160.00
A27: 1 | B27: Training/Support to end user (provide as hourly rate) | D27: OP-TRAINING | E27: $0.00 | F27: 15% | G27: $0.00
A28: 1 | B28: Turnkey Maintenance Plan that includes gauranteed up time and preventive maintenance | D28: 6AGC084266 + 6AGX000022* | E28: =6134.36+1661.32 -> $7,795.68 | F28: 15% | G28: $6,626.33
A29: 1 | B29: Fleet Charging Module (standard software/module provided for average fleet sizes) | G29: $0.00
A31: Discount % Catalog Items
A32: Additional items and accessories not offered above can be purchased from this contract at the following % off the most current publicly published price list or catalog. Offeror must also submit a list of additional items that fit within these areas that may also be purchased via the contract. | G32: 15.0%
A35: Additional Manufacturer # 2
A36: Equipment
A37: QTY. | B37: DESCRIPTION | C37: MANUFACTURER | D37: MODEL/PART # | E37: UNIT PRICE | F37: DISCOUNT % OFF | G37: FINAL ITEM COST
A38: 1 | B38: All In One Single Unit Station (Power Cabinet and Dispenser) | C38: ABB | D38: Terra 184 CC HC + CCR / 6AGC112876 | E38: $104,339.57 | F38: 30% | G38: =E38-(E38*F38) -> $73,037.70
A41: Accessories & Additional Items
A42: QTY. | B42: DESCRIPTION | C42: MANUFACTURER | D42: MODEL/PART # | E42: UNIT PRICE | F42: DISCOUNT % OFF | G42: FINAL ITEM COST
A43: 1 | B43: Cord Management Kit (most commonly sold cord management kit of suppliers which is sold to end users) | C43: ABB | D43: TL40025683819003 | E43: $1,898.67 | F43: 20% | G43: =E43-(E43*F43) -> $1,518.94
A44: 1 | B44: Replacement Cord (most commonly sold replacement cord of suppliers which is sold to end users) | G44: $0.00
A45: 1 | B45: 480 Volt Sub-Panel (most commonly sold by supplier) | G45: $0.00
A46: 1 | B46: Cellular Repeater (most common repeater used with station) | G46: $0.00
A47: 1 | B47: Wheel Stops: (Includes material and installation for 1 wheel stop) | G47: $0.00
A48: 1 | B48: Bollards: (Includes material and installation for 1 bollard) | G48: $0.00
A49: 1 | B49: Replacement RFID card | C49: OpConnect | D49: OPCONNECT-RFID | E49: $5.00 | F49: 15% | G49: $4.25
A50: Services
A51: QTY. | B51: DESCRIPTION | C51: MANUFACTURER | D51: MODEL/PART # | E51: UNIT PRICE | F51: DISCOUNT % OFF | G51: FINAL ITEM COST
A52: 1 | B52: Networking (bundled with software) - Annual network data fees (including start up and initiation costs) | D52: OP-NOC3-L3-1 | E52: $500.00 | F52: 20% | G52: =E52-(E52*F52) -> $400.00
A53: 1 | B53: Basic Asset Management Services/Plan | G53: $0.00
A54: 1 | B54: Existing EV Station Upgrade, Swap-out from Single Port to Dual Port | G54: $0.00
A55: 1 | B55: Commissioning (average cost to certify and commission for use 1 EV Charging Station) | D55: OP-PROVISION-DCFC | E55: $2,400.00 | F55: 10% | G55: $2,160.00
A56: 1 | B56: Training/Support to end user (provide as hourly rate) | D56: OP-TRAINING | E56: $0.00 | F56: 15% | G56: $0.00
A57: 1 | B57: Turnkey Maintenance Plan that includes gauranteed up time and preventive maintenance | D57: 6AGC084275 + 6AGX000022* | E57: =6883.13+1661.32 -> $8,544.45 | F57: 15% | G57: $7,262.78
A58: 1 | B58: Fleet Charging Module (standard software/module provided for average fleet sizes) | G58: $0.00
A60: Discount % Catalog Items
A61: Additional items and accessories not offered above can be purchased from this contract at the following % off the most current publicly published price list or catalog. Offeror must also submit a list of additional items that fit within these areas that may also be purchased via the contract. | G61: 15.0%
A64: Additional Manufacturer # 3
A65: Equipment
A66: QTY. | B66: DESCRIPTION | C66: MANUFACTURER | D66: MODEL/PART # | E66: UNIT PRICE | F66: DISCOUNT % OFF | G66: FINAL ITEM COST
A67: 1 | B67: All In One Single Unit Station (Power Cabinet and Dispenser) | C67: ABB | D67: Terra Wallbox / 6AGC081364 | E67: $14,702.62 | F67: 20% | G67: =E67-(E67*F67) -> $11,762.10
A70: Accessories & Additional Items
A71: QTY. | B71: DESCRIPTION | C71: MANUFACTURER | D71: MODEL/PART # | E71: UNIT PRICE | F71: DISCOUNT % OFF | G71: FINAL ITEM COST
A72: 1 | B72: Cord Management Kit (most commonly sold cord management kit of suppliers which is sold to end users) | C72: ABB | D72: 6AGC076604 | E72: $720.00 | F72: 20% | G72: =E72-(E72*F72) -> $576.00
A73: 1 | B73: Replacement Cord (most commonly sold replacement cord of suppliers which is sold to end users) | G73: $0.00
A74: 1 | B74: 480 Volt Sub-Panel (most commonly sold by supplier) | G74: $0.00
A75: 1 | B75: Cellular Repeater (most common repeater used with station) | G75: $0.00
A76: 1 | B76: Wheel Stops: (Includes material and installation for 1 wheel stop) | G76: $0.00
A77: 1 | B77: Bollards: (Includes material and installation for 1 bollard) | G77: $0.00
A78: 1 | B78: Replacement RFID card | C78: OpConnect | D78: OPCONNECT-RFID | E78: $5.00 | F78: 15% | G78: $4.25
A79: Services
A80: QTY. | B80: DESCRIPTION | C80: MANUFACTURER | D80: MODEL/PART # | E80: UNIT PRICE | F80: DISCOUNT % OFF | G80: FINAL ITEM COST
A81: 1 | B81: Networking (bundled with software) - Annual network data fees (including start up and initiation costs) | D81: OP-NOC3-L3-1 | E81: $500.00 | F81: 20% | G81: =E81-(E81*F81) -> $400.00
A82: 1 | B82: Basic Asset Management Services/Plan | G82: $0.00
A83: 1 | B83: Existing EV Station Upgrade, Swap-out from Single Port to Dual Port | G83: $0.00
A84: 1 | B84: Commissioning (average cost to certify and commission for use 1 EV Charging Station) | D84: OP-PROVISION-DCFC | E84: $2,400.00 | F84: 10% | G84: $2,160.00
A85: 1 | B85: Training/Support to end user (provide as hourly rate) | D85: OP-TRAINING | E85: $0.00 | F85: 15% | G85: $0.00
A86: 1 | B86: Turnkey Maintenance Plan that includes gauranteed up time and preventive maintenance | D86: 6AGC100306 + 6AGX000020* | E86: =3380.71+1340.55 -> $4,721.26 | F86: 15% | G86: $4,013.07
A87: 1 | B87: Fleet Charging Module (standard software/module provided for average fleet sizes) | G87: $0.00
A89: Discount % Catalog Items
A90: Additional items and accessories not offered above can be purchased from this contract at the following % off the most current publicly published price list or catalog. Offeror must also submit a list of additional items that fit within these areas that may also be purchased via the contract. | G90: 15.0%
A93: Additional Manufacturer # 4
A94: Equipment
A95: QTY. | B95: DESCRIPTION | C95: MANUFACTURER | D95: MODEL/PART # | E95: UNIT PRICE | F95: DISCOUNT % OFF | G95: FINAL ITEM COST
A96: 1 | B96: All In One Single Unit Station (Power Cabinet and Dispenser) | C96: ABB | D96: Terra Wallbox (CCS-1/CHAdeMO) / 6AGC107315 | E96: $18,008.65 | F96: 20% | G96: =E96-(E96*F96) -> $14,406.92
A97: 1 | B97: Station/Dispenser | G97: =E97-(E97*F97) -> $0.00
A98: 1 | B98: Power Cabinet | D98: 360kW PCS RES-DCV360-480 One Dispenser RES-D3-CS20HP (Bundle) | E98: $122,411.00 | F98: 10% | G98: =E98-(E98*F98) -> $110,169.90
A99: Accessories & Additional Items
A100: QTY. | B100: DESCRIPTION | C100: MANUFACTURER | D100: MODEL/PART # | E100: UNIT PRICE | F100: DISCOUNT % OFF | G100: FINAL ITEM COST
A101: 1 | B101: Cord Management Kit (most commonly sold cord management kit of suppliers which is sold to end users) | C101: ABB | D101: 6AGC076604 | E101: $720.00 | F101: 20% | G101: =E101-(E101*F101) -> $576.00
A102: 1 | B102: Replacement Cord (most commonly sold replacement cord of suppliers which is sold to end users) | G102: $0.00
A103: 1 | B103: 480 Volt Sub-Panel (most commonly sold by supplier) | G103: $0.00
A104: 1 | B104: Cellular Repeater (most common repeater used with station) | G104: $0.00
A105: 1 | B105: Wheel Stops: (Includes material and installation for 1 wheel stop) | G105: $0.00
A106: 1 | B106: Bollards: (Includes material and installation for 1 bollard) | G106: $0.00
A107: 1 | B107: Replacement RFID card | C107: OpConnect | D107: OPCONNECT-RFID | E107: $5.00 | F107: 15% | G107: $4.25
A108: Services
A109: QTY. | B109: DESCRIPTION | C109: MANUFACTURER | D109: MODEL/PART # | E109: UNIT PRICE | F109: DISCOUNT % OFF | G109: FINAL ITEM COST
A110: 1 | B110: Networking (bundled with software) - Annual network data fees (including start up and initiation costs) | D110: OP-NOC3-L3-1 | E110: $500.00 | F110: 20% | G110: =E110-(E110*F110) -> $400.00
A111: 1 | B111: Basic Asset Management Services/Plan | G111: $0.00
A112: 1 | B112: Existing EV Station Upgrade, Swap-out from Single Port to Dual Port | G112: $0.00
A113: 1 | B113: Commissioning (average cost to certify and commission for use 1 EV Charging Station) | D113: OP-PROVISION-DCFC | E113: $2,400.00 | F113: 10% | G113: $2,160.00
A114: 1 | B114: Training/Support to end user (provide as hourly rate) | D114: OP-TRAINING | E114: $0.00 | F114: 15% | G114: $0.00
A115: 1 | B115: Turnkey Maintenance Plan that includes gauranteed up time and preventive maintenance | D115: 6AGC100306 + 6AGX000020* | E115: =3380.71+1340.55 -> $4,721.26 | F115: 15% | G115: $4,013.07
A116: 1 | B116: Fleet Charging Module (standard software/module provided for average fleet sizes) | G116: $0.00
A118: Discount % Catalog Items
A119: Additional items and accessories not offered above can be purchased from this contract at the following % off the most current publicly published price list or catalog. Offeror must also submit a list of additional items that fit within these areas that may also be purchased via the contract. | G119: 15.0%

Sheet + Optional - Category 2 (ADD'L)
A1: OPTIONAL - Category 2 - Level 3 DC Fast Charger
A2: This tab is to be used if supplier will offer additional manufacturers if they are awarded a contract. This tab is NOT used for scoring and awarding but required to be completed if supplier is planning on offering additional manufacturers. There are 4 tables to add up to 4 additional manufacturers. If supplier offers more than 4, they may copy and paste the table at the bottom to add additional manufacturers. As this is not used for scoring and awarding, these tables DO NOT need to have each line item filled out.
A4: How many additional manufacturers does supplier offer
A6: Additional Manufacturer # 1
A7: Equipment
A8: QTY. | B8: DESCRIPTION | C8: MANUFACTURER | D8: MODEL/PART # | E8: UNIT PRICE | F8: DISCOUNT % OFF | G8: FINAL ITEM COST
A9: 1 | B9: All In One Single Unit Station (Power Cabinet and Dispenser) | C9: BTC Power (120 kW) | D9: L3A-120-480-202-016 | E9: $56,667.00 | F9: 15% | G9: =E9-(E9*F9) -> $48,166.95
A10: 1 | B10: All In One Single Unit Station (Power Cabinet and Dispenser) | C10: BTC Power (180 kW) | D10: L3A-180-480-502-016 | E10: $67,778.00 | F10: 15% | G10: =E10-(E10*F10) -> $57,611.30
A11: 1 | B11: Station/Dispenser | C11: BTC Power (Dual Dispenser) | D11: HPCD7-450-D02-016 | E11: $51,111.00 | F11: 15% | G11: =E11-(E11*F11) -> $43,444.35
A12: 1 | B12: Power Cabinet | C12: BTC Power (360 kW Tower- 2 Channel) | D12: HPCT2-360-480-2 | E12: $65,556.00 | F12: 15% | G12: =E12-(E12*F12) -> $55,722.60
A13: Accessories & Additional Items
A14: QTY. | B14: DESCRIPTION | C14: MANUFACTURER | D14: MODEL/PART # | E14: UNIT PRICE | F14: DISCOUNT % OFF | G14: FINAL ITEM COST
A15: 1 | B15: Cord Management Kit (most commonly sold cord management kit of suppliers which is sold to end users) | F15: 20% | G15: =E15-(E15*F15) -> $0.00
A16: 1 | B16: Replacement Cord (most commonly sold replacement cord of suppliers which is sold to end users) | G16: $0.00
A17: 1 | B17: 480 Volt Sub-Panel (most commonly sold by supplier) | G17: $0.00
A18: 1 | B18: Cellular Repeater (most common repeater used with station) | G18: $0.00
A19: 1 | B19: Wheel Stops: (Includes material and installation for 1 wheel stop) | G19: $0.00
A20: 1 | B20: Bollards: (Includes material and installation for 1 bollard) | G20: $0.00
A21: 1 | B21: Replacement RFID card | G21: $0.00
A22: Services
A23: QTY. | B23: DESCRIPTION | C23: MANUFACTURER | D23: MODEL/PART # | E23: UNIT PRICE | F23: DISCOUNT % OFF | G23: FINAL ITEM COST
A24: 1 | B24: Networking (bundled with software) - Annual network data fees (including start up and initiation costs) | G24: =E24-(E24*F24) -> $0.00
A25: 1 | B25: Basic Asset Management Services/Plan | G25: $0.00
A26: 1 | B26: Existing EV Station Upgrade, Swap-out from Single Port to Dual Port | G26: $0.00
A27: 1 | B27: Commissioning (average cost to certify and commission for use 1 EV Charging Station) | G27: $0.00
A28: 1 | B28: Training/Support to end user (provide as hourly rate) | G28: $0.00
A29: 1 | B29: Turnkey Maintenance Plan that includes gauranteed up time and preventive maintenance | G29: $0.00
A30: 1 | B30: Fleet Charging Module (standard software/module provided for average fleet sizes) | G30: $0.00
A32: Discount % Catalog Items
A33: Additional items and accessories not offered above can be purchased from this contract at the following % off the most current publicly published price list or catalog. Offeror must also submit a list of additional items that fit within these areas that may also be purchased via the contract. | G33: 15.0%
A36: Additional Manufacturer # 2
A37: Equipment
A38: QTY. | B38: DESCRIPTION | C38: MANUFACTURER | D38: MODEL/PART # | E38: UNIT PRICE | F38: DISCOUNT % OFF | G38: FINAL ITEM COST
A39: 1 | B39: All In One Single Unit Station (Power Cabinet and Dispenser) | F39: 30% | G39: =E39-(E39*F39) -> $0.00
A40: 1 | B40: Station/Dispenser | G40: =E40-(E40*F40) -> $0.00
A41: 1 | B41: Power Cabinet | C41: BTC Power (360 kW Tower - 4 channel) | D41: HPCT3-360-480-4 | E41: $73,333.00 | F41: 10% | G41: =E41-(E41*F41) -> $65,999.70
A42: Accessories & Additional Items
A43: QTY. | B43: DESCRIPTION | C43: MANUFACTURER | D43: MODEL/PART # | E43: UNIT PRICE | F43: DISCOUNT % OFF | G43: FINAL ITEM COST
A44: 1 | B44: Cord Management Kit (most commonly sold cord management kit of suppliers which is sold to end users) | F44: 20% | G44: =E44-(E44*F44) -> $0.00
A45: 1 | B45: Replacement Cord (most commonly sold replacement cord of suppliers which is sold to end users) | G45: $0.00
A46: 1 | B46: 480 Volt Sub-Panel (most commonly sold by supplier) | G46: $0.00
A47: 1 | B47: Credit Card Reader | F47: 15% | G47: $0.00
A48: 1 | B48: Cellular Repeater (most common repeater used with station) | G48: $0.00
A49: 1 | B49: Wheel Stops: (Includes material and installation for 1 wheel stop) | G49: $0.00
A50: 1 | B50: Bollards: (Includes material and installation for 1 bollard) | G50: $0.00
A51: 1 | B51: Replacement RFID card | G51: $0.00
A52: Services
A53: QTY. | B53: DESCRIPTION | C53: MANUFACTURER | D53: MODEL/PART # | E53: UNIT PRICE | F53: DISCOUNT % OFF | G53: FINAL ITEM COST
A54: 1 | B54: Networking (bundled with software) - Annual network data fees (including start up and initiation costs) | G54: =E54-(E54*F54) -> $0.00
A55: 1 | B55: Basic Asset Management Services/Plan | G55: $0.00
A56: 1 | B56: Existing EV Station Upgrade, Swap-out from Single Port to Dual Port | G56: $0.00
A57: 1 | B57: Commissioning (average cost to certify and commission for use 1 EV Charging Station) | G57: $0.00
A58: 1 | B58: Training/Support to end user (provide as hourly rate) | G58: $0.00
A59: 1 | B59: Turnkey Maintenance Plan that includes gauranteed up time and preventive maintenance | G59: $0.00
A60: 1 | B60: Fleet Charging Module (standard software/module provided for average fleet sizes) | G60: $0.00
A62: Discount % Catalog Items
A63: Additional items and accessories not offered above can be purchased from this contract at the following % off the most current publicly published price list or catalog. Offeror must also submit a list of additional items that fit within these areas that may also be purchased via the contract. | G63: 15.0%
A66: Additional Manufacturer # 3
A67: Equipment
A68: QTY. | B68: DESCRIPTION | C68: MANUFACTURER | D68: MODEL/PART # | E68: UNIT PRICE | F68: DISCOUNT % OFF | G68: FINAL ITEM COST
A69: 1 | B69: All In One Single Unit Station (Power Cabinet and Dispenser) | C69: Tritium RTM75 | D69: 24085-0000000 | E69: $37,123.00 | F69: 15% | G69: =E69-(E69*F69) -> $31,554.55
A70: 1 | B70: Station/Dispenser | C70: BTC Power (Dual Dispenser) | D70: HPCD7-450-D02-016 | E70: $51,111.00 | G70: =E70-(E70*F70) -> $51,111.00
A71: 1 | B71: Power Cabinet | C71: BTC Power (180 kW Tower) | D71: HPCT3-180-480-2 | E71: $53,000.00 | F71: 10% | G71: =E71-(E71*F71) -> $47,700.00
A72: Accessories & Additional Items
A73: QTY. | B73: DESCRIPTION | C73: MANUFACTURER | D73: MODEL/PART # | E73: UNIT PRICE | F73: DISCOUNT % OFF | G73: FINAL ITEM COST
A74: 1 | B74: Cord Management Kit (most commonly sold cord management kit of suppliers which is sold to end users) | F74: 20% | G74: =E74-(E74*F74) -> $0.00
A75: 1 | B75: Replacement Cord (most commonly sold replacement cord of suppliers which is sold to end users) | G75: $0.00
A76: 1 | B76: 480 Volt Sub-Panel (most commonly sold by supplier) | G76: $0.00
A77: 1 | B77: Cellular Repeater (most common repeater used with station) | G77: $0.00
A78: 1 | B78: Wheel Stops: (Includes material and installation for 1 wheel stop) | G78: $0.00
A79: 1 | B79: Bollards: (Includes material and installation for 1 bollard) | G79: $0.00
A80: 1 | B80: Replacement RFID card | G80: $0.00
A81: Services
A82: QTY. | B82: DESCRIPTION | C82: MANUFACTURER | D82: MODEL/PART # | E82: UNIT PRICE | F82: DISCOUNT % OFF | G82: FINAL ITEM COST
A83: 1 | B83: Networking (bundled with software) - Annual network data fees (including start up and initiation costs) | G83: =E83-(E83*F83) -> $0.00
A84: 1 | B84: Basic Asset Management Services/Plan | G84: $0.00
A85: 1 | B85: Existing EV Station Upgrade, Swap-out from Single Port to Dual Port | G85: $0.00
A86: 1 | B86: Commissioning (average cost to certify and commission for use 1 EV Charging Station) | G86: $0.00
A87: 1 | B87: Training/Support to end user (provide as hourly rate) | G87: $0.00
A88: 1 | B88: Turnkey Maintenance Plan that includes gauranteed up time and preventive maintenance | G88: $0.00
A89: 1 | B89: Fleet Charging Module (standard software/module provided for average fleet sizes) | G89: $0.00
A91: Discount % Catalog Items
A92: Additional items and accessories not offered above can be purchased from this contract at the following % off the most current publicly published price list or catalog. Offeror must also submit a list of additional items that fit within these areas that may also be purchased via the contract. | G92: 15.0%
A95: Additional Manufacturer # 4
A96: Equipment
A97: QTY. | B97: DESCRIPTION | C97: MANUFACTURER | D97: MODEL/PART # | E97: UNIT PRICE | F97: DISCOUNT % OFF | G97: FINAL ITEM COST
A98: 1 | B98: All In One Single Unit Station (Power Cabinet and Dispenser) | C98: Tritium (RTM50) | D98: 19918 | E98: $34,915.00 | F98: 15% | G98: =E98-(E98*F98) -> $29,677.75
A99: 1 | B99: Station/Dispenser | C99: Tritium (PKM 150) | D99: 19887 | E99: $72,605.00 | F99: 15% | G99: =E99-(E99*F99) -> $61,714.25
A100: 1 | B100: Power Cabinet | C100: Tritium (PKM Rectifier) | D100: 20622 | E100: $63,480.00 | F100: 15% | G100: =E100-(E100*F100) -> $53,958.00
A101: Accessories & Additional Items
A102: QTY. | B102: DESCRIPTION | C102: MANUFACTURER | D102: MODEL/PART # | E102: UNIT PRICE | F102: DISCOUNT % OFF | G102: FINAL ITEM COST
A103: 1 | B103: Cord Management Kit (most commonly sold cord management kit of suppliers which is sold to end users) | G103: =E103-(E103*F103) -> $0.00
A104: 1 | B104: Replacement Cord (most commonly sold replacement cord of suppliers which is sold to end users) | G104: $0.00
A105: 1 | B105: Credit Card Reader | C105: Payter (P68) - Tritium | D105: 17156 | E105: $1,150.00 | F105: 10% | G105: $1,035.00
A106: 1 | B106: 480 Volt Sub-Panel (most commonly sold by supplier) | G106: $0.00
A107: 1 | B107: Cellular Repeater (most common repeater used with station) | G107: $0.00
A108: 1 | B108: Wheel Stops: (Includes material and installation for 1 wheel stop) | G108: $0.00
A109: 1 | B109: Bollards: (Includes material and installation for 1 bollard) | G109: $0.00
A110: 1 | B110: Replacement RFID card | G110: $0.00
A111: Services
A112: QTY. | B112: DESCRIPTION | C112: MANUFACTURER | D112: MODEL/PART # | E112: UNIT PRICE | F112: DISCOUNT % OFF | G112: FINAL ITEM COST
A113: 1 | B113: Networking (bundled with software) - Annual network data fees (including start up and initiation costs) | G113: =E113-(E113*F113) -> $0.00
A114: 1 | B114: Basic Asset Management Services/Plan | G114: $0.00
A115: 1 | B115: Existing EV Station Upgrade, Swap-out from Single Port to Dual Port | G115: $0.00
A116: 1 | B116: Commissioning (average cost to certify and commission for use 1 EV Charging Station) | G116: $0.00
A117: 1 | B117: Training/Support to end user (provide as hourly rate) | G117: $0.00
A118: 1 | B118: Turnkey Maintenance Plan that includes gauranteed up time and preventive maintenance | G118: $0.00
A119: 1 | B119: Fleet Charging Module (standard software/module provided for average fleet sizes) | G119: $0.00
A121: Discount % Catalog Items
A122: Additional items and accessories not offered above can be purchased from this contract at the following % off the most current publicly published price list or catalog. Offeror must also submit a list of additional items that fit within these areas that may also be purchased via the contract. | G122: 15.0%
A124: Additional Manufacturer # 5
A125: Equipment
A126: QTY. | B126: DESCRIPTION | C126: MANUFACTURER | D126: MODEL/PART # | E126: UNIT PRICE | F126: DISCOUNT % OFF | G126: FINAL ITEM COST
A127: 1 | B127: All In One Single Unit Station (Power Cabinet and Dispenser) | C127: Kempower | D127: C501P40UU5CSD2L / C801P40UU5CSD2L | E127: $40,173.00 | F127: 10% | G127: =E127-(E127*F127) -> $36,155.70
A128: 1 | B128: Station/Dispenser | C128: Kempower | D128: STU5CSL | E128: $8,983.00 | F128: 10% | G128: =E128-(E128*F128) -> $8,084.70
A129: 1 | B129: Power Cabinet | C129: Kempower | D129: C501D4LV3 + PM550LV1 x1 / C801D4LV3 + PM850V1 x1 | E129: $41,232.00 | F129: 10% | G129: =E129-(E129*F129) -> $37,108.80
A130: Accessories & Additional Items
A131: QTY. | B131: DESCRIPTION | C131: MANUFACTURER | D131: MODEL/PART # | E131: UNIT PRICE | F131: DISCOUNT % OFF | G131: FINAL ITEM COST
A132: 1 | B132: Extra Cable Length 7m for satelitte | C132: Kempower | E132: $350.00 | F132: 0% | G132: =E132-(E132*F132) -> $350.00
A133: 1 | B133: Steel base 200 mm raise kit for C501/C801 | C133: Kempower | E133: $1,026.00 | F133: 10% | G133: $923.40
A134: 1 | B134: Credit Card Reader | C134: Payter68 | E134: $1,893.00 | F134: 10% | G134: $1,703.70
A135: 1 | B135: D6 Option for C501 | C135: Kempower | E135: $6,134.00 | F135: 10% | G135: $5,520.60
A136: 1 | B136: D6 Option for C801 | C136: Kempower | E136: $6,134.00 | F136: 10% | G136: $5,520.60
A137: 1 | B137: D8 Option for C501 | C137: Kempower | E137: $6,134.00 | F137: 10% | G137: $5,520.60
A138: 1 | B138: D8 Option for C801 | C138: Kempower | E138: $6,134.00 | F138: 10% | G138: $5,520.60
A139: 1 | G139: $0.00
A140: Services
A141: QTY. | B141: DESCRIPTION | C141: MANUFACTURER | D141: MODEL/PART # | E141: UNIT PRICE | F141: DISCOUNT % OFF | G141: FINAL ITEM COST
A142: 1 | B142: Networking (bundled with software) - Annual network data fees (including start up and initiation costs) | G142: =E142-(E142*F142) -> $0.00
A143: 1 | B143: Basic Asset Management Services/Plan | G143: $0.00
A144: 1 | B144: Existing EV Station Upgrade, Swap-out from Single Port to Dual Port | G144: $0.00
A145: 1 | B145: Commissioning (average cost to certify and commission for use 1 EV Charging Station) | G145: $0.00
A146: 1 | B146: Training/Support to end user (provide as hourly rate) | G146: $0.00
A147: 1 | B147: Turnkey Maintenance Plan that includes gauranteed up time and preventive maintenance | G147: $0.00
A148: 1 | B148: Fleet Charging Module (standard software/module provided for average fleet sizes) | G148: $0.00
A150: Additional Manufacturer # 6
A151: Equipment
A152: QTY. | B152: DESCRIPTION | C152: MANUFACTURER | D152: MODEL/PART # | E152: UNIT PRICE | F152: DISCOUNT % OFF | G152: FINAL ITEM COST
A153: 1 | B153: All In One Single Unit Station (Power Cabinet and Dispenser) | C153: Kempower | D153: C501P80UU5CSD2L / C801P80UU5CSD2L | E153: $54,312.00 | F153: 10% | G153: =E153-(E153*F153) -> $48,880.80
A154: 1 | B154: Station/Dispenser | C154: Kempower | D154: STN5DSL | E154: $8,983.00 | F154: 10% | G154: =E154-(E154*F154) -> $8,084.70
A155: 1 | B155: Power Cabinet | C155: Kempower | D155: C501D4LV3 + PM550LV1 x2 / C801D4LV3 + PM850V1 x2 | E155: $55,474.00 | F155: 10% | G155: =E155-(E155*F155) -> $49,926.60
A156: Accessories & Additional Items
A157: QTY. | B157: DESCRIPTION | C157: MANUFACTURER | D157: MODEL/PART # | E157: UNIT PRICE | F157: DISCOUNT % OFF | G157: FINAL ITEM COST
A158: 1 | B158: Extra Cable Length 7m for Single Station | C158: Kempower | E158: $335.00 | F158: 10% | G158: =E158-(E158*F158) -> $301.50
A159: 1 | B159: Steel base 200 mm raise kit for C502/C802 | C159: Kempower | E159: $2,052.00 | F159: 10% | G159: $1,846.80
A160: 1 | B160: Credit Card Reader | C160: Apollo | E160: $2,201.00 | F160: 10% | G160: $1,980.90
A161: 1 | B161: D6 Option for C502 | C161: Kempower | E161: $12,268.00 | F161: 10% | G161: $11,041.20
A162: 1 | B162: D6 Option for C802 | C162: Kempower | E162: $12,268.00 | F162: 10% | G162: $11,041.20
A163: 1 | B163: D8 Option for C502 | C163: Kempower | E163: $12,268.00 | F163: 10% | G163: $11,041.20
A164: 1 | B164: D8 Option for C802 | C164: Kempower | E164: $12,268.00 | F164: 10% | G164: $11,041.20
A165: Services
A166: QTY. | B166: DESCRIPTION | C166: MANUFACTURER | D166: MODEL/PART # | E166: UNIT PRICE | F166: DISCOUNT % OFF | G166: FINAL ITEM COST
A167: 1 | B167: Networking (bundled with software) - Annual network data fees (including start up and initiation costs) | G167: =E167-(E167*F167) -> $0.00
A168: 1 | B168: Basic Asset Management Services/Plan | G168: $0.00
A169: 1 | B169: Existing EV Station Upgrade, Swap-out from Single Port to Dual Port | G169: $0.00
A170: 1 | B170: Commissioning (average cost to certify and commission for use 1 EV Charging Station) | G170: $0.00
A171: 1 | B171: Training/Support to end user (provide as hourly rate) | G171: $0.00
A172: 1 | B172: Turnkey Maintenance Plan that includes gauranteed up time and preventive maintenance | G172: $0.00
A173: 1 | B173: Fleet Charging Module (standard software/module provided for average fleet sizes) | G173: $0.00
A175: Additional Manufacturer # 7
A176: Equipment
A177: QTY. | B177: DESCRIPTION | C177: MANUFACTURER | D177: MODEL/PART # | E177: UNIT PRICE | F177: DISCOUNT % OFF | G177: FINAL ITEM COST
A178: 1 | B178: All In One Single Unit Station (Power Cabinet and Dispenser) | C178: Kempower | D178: C501P120UU5CSD2L / C801P120UU5CSD2L | E178: $67,911.00 | F178: 10% | G178: =E178-(E178*F178) -> $61,119.90
A179: 1 | B179: Station/Dispenser | C179: Kempower | D179: STUU5CSL | E179: $13,760.00 | F179: 10% | G179: =E179-(E179*F179) -> $12,384.00
A180: 1 | B180: Power Cabinet | C180: Kempower | D180: C501D4LV3 + PM550LV1 x3 / C801D4LV3 + PM850V1 x3 | E180: $69,715.00 | F180: 10% | G180: =E180-(E180*F180) -> $62,743.50
A181: Accessories & Additional Items
A182: QTY. | B182: DESCRIPTION | C182: MANUFACTURER | D182: MODEL/PART # | E182: UNIT PRICE | F182: DISCOUNT % OFF | G182: FINAL ITEM COST
A183: 1 | B183: Steel base 200 mm raise kit for C503/C803 | C183: Kempower | E183: $3,078.00 | F183: 10% | G183: =E183-(E183*F183) -> $2,770.20
A184: 1 | B184: D6 Option for C503 | C184: Kempower | E184: $18,403.00 | F184: 10% | G184: $16,562.70
A185: 1 | B185: D6 Option for C803 | C185: Kempower | E185: $18,403.00 | F185: 10% | G185: $16,562.70
A186: 1 | B186: D8 Option for C503 | C186: Kempower | E186: $18,403.00 | F186: 10% | G186: $16,562.70
A187: 1 | B187: D8 Option for C803 | C187: Kempower | E187: $18,403.00 | F187: 10% | G187: $16,562.70
A188: Services
A189: QTY. | B189: DESCRIPTION | C189: MANUFACTURER | D189: MODEL/PART # | E189: UNIT PRICE | F189: DISCOUNT % OFF | G189: FINAL ITEM COST
A190: 1 | B190: Networking (bundled with software) - Annual network data fees (including start up and initiation costs) | G190: =E190-(E190*F190) -> $0.00
A191: 1 | B191: Basic Asset Management Services/Plan | G191: $0.00
A192: 1 | B192: Existing EV Station Upgrade, Swap-out from Single Port to Dual Port | G192: $0.00
A193: 1 | B193: Commissioning (average cost to certify and commission for use 1 EV Charging Station) | G193: $0.00
A194: 1 | B194: Training/Support to end user (provide as hourly rate) | G194: $0.00
A195: 1 | B195: Turnkey Maintenance Plan that includes gauranteed up time and preventive maintenance | G195: $0.00
A196: 1 | B196: Fleet Charging Module (standard software/module provided for average fleet sizes) | G196: $0.00
A198: Additional Manufacturer # 8
A199: Equipment
A200: QTY. | B200: DESCRIPTION | C200: MANUFACTURER | D200: MODEL/PART # | E200: UNIT PRICE | F200: DISCOUNT % OFF | G200: FINAL ITEM COST
A201: 1 | B201: All In One Single Unit Station (Power Cabinet and Dispenser) | C201: Kempower | D201: C501P160UU5CSD2L / C801P160UU5CSD2L | E201: $81,510.00 | F201: 10% | G201: =E201-(E201*F201) -> $73,359.00
A202: 1 | B202: Station/Dispenser | C202: Kempower | D202: STUN5CDSL | E202: $13,760.00 | F202: 10% | G202: =E202-(E202*F202) -> $12,384.00
A203: 1 | B203: Power Cabinet | C203: Kempower | D203: C501D4LV3 + PM550LV1 x4 / C801D4LV3 + PM850V1 x4 | E203: $83,956.00 | F203: 10% | G203: =E203-(E203*F203) -> $75,560.40
A204: Accessories & Additional Items
A205: QTY. | B205: DESCRIPTION | C205: MANUFACTURER | D205: MODEL/PART # | E205: UNIT PRICE | F205: DISCOUNT % OFF | G205: FINAL ITEM COST
A206: 1 | B206: Upgrade CCS1 Cable option (E) (CCS1 300A) | C206: Kempower | E206: $2,785.00 | F206: 10% | G206: =E206-(E206*F206) -> $2,506.50
A207: 1 | B207: Upgrade CCS1 Cable option (H) (CCS1 400A) | C207: Kempower | E207: $3,398.00 | F207: 10% | G207: $3,058.20
A208: 1 | B208: Upgrade NACS Cable option (L) (NACS 350A) | C208: Kempower | E208: $2,785.00 | F208: 10% | G208: $2,506.50
A209: 1 | B209: Upgrade NACS Cable option (G) (NACS 380A) | C209: Kempower | E209: $3,398.00 | F209: 10% | G209: =E209-(E209*F209) -> $3,058.20
A210: 1 | B210: Equipment Stop | C210: Kempower | E210: $521.00 | F210: 10% | G210: =E210-(E210*F210) -> $468.90
A211: Services
A212: QTY. | B212: DESCRIPTION | C212: MANUFACTURER | D212: MODEL/PART # | E212: UNIT PRICE | F212: DISCOUNT % OFF | G212: FINAL ITEM COST
A213: 1 | B213: Networking (bundled with software) - Annual network data fees (including start up and initiation costs) | G213: =E213-(E213*F213) -> $0.00
A214: 1 | B214: Basic Asset Management Services/Plan | G214: $0.00
A215: 1 | B215: Existing EV Station Upgrade, Swap-out from Single Port to Dual Port | G215: $0.00
A216: 1 | B216: Commissioning (average cost to certify and commission for use 1 EV Charging Station) | G216: $0.00
... 113 more rows
